bitfinex/quotes_BTCUSD_20251029
["timestamp","ask_amount","ask_price","bid_price","bid_amount"]
[1761765962769,1e-08,111270.0,111260.0,0.42445953]
[1761765962979,1e-08,111270.0,111260.0,1.15941398]
[1761765963184,1e-08,111270.0,111260.0,3.15441398]
[1761765963396,1e-08,111270.0,111260.0,2.42045953]
[1761765963602,1e-08,111270.0,111260.0,2.42445953]
[1761765964437,1e-08,111270.0,111260.0,0.42745953]
[1761765965528,1e-08,111270.0,111260.0,0.42445953]
[1761765965734,1e-08,111270.0,111260.0,0.42245953]
[1761765965937,1e-08,111270.0,111260.0,0.42445953]
[1761765966559,1e-08,111270.0,111260.0,1.15841398]
[1761765967185,1e-08,111270.0,111260.0,3.57907625]
[1761765969498,1e-08,111270.0,111260.0,3.56907626]
[1761765970211,1e-08,111270.0,111260.0,3.57907625]
[1761765970657,0.0002,111290.0,111280.0,2.94986354]
[1761765970881,0.0002,111290.0,111280.0,3.13438931]
[1761765971321,0.00063504,111290.0,111280.0,3.18259931]
[1761765971786,0.17974296,111270.0,111250.0,0.17976129]
[1761765971983,0.17974565,111270.0,111250.0,0.31836716]
[1761765972202,0.17974565,111270.0,111250.0,0.36657716]
[1761765972414,0.37858,111270.0,111260.0,0.21194912]
[1761765972622,0.17972733,111280.0,111270.0,0.17974127]
[1761765972835,0.17972681,111280.0,111270.0,0.08516194]
[1761765973074,0.17972681,111280.0,111270.0,0.26014296]
[1761765973276,0.17972681,111280.0,111270.0,0.03219]
[1761765973496,0.17972681,111280.0,111270.0,0.21193296]
[1761765973713,0.17972681,111280.0,111270.0,0.03219]
[1761765973928,0.17974296,111270.0,111260.0,0.26957813]
[1761765974148,0.19545681,111280.0,111260.0,0.32028963]
[1761765974371,0.17974296,111270.0,111260.0,0.39819963]
[1761765974580,0.17972681,111280.0,111260.0,0.36818963]
[1761765974802,0.17972681,111280.0,111250.0,0.28543747]
[1761765975002,0.17972681,111280.0,111260.0,0.22765722]
[1761765975421,0.17974296,111270.0,111260.0,0.0479]
[1761765975835,0.17974296,111270.0,111260.0,0.20976912]
[1761765976011,0.17974296,111270.0,111260.0,0.11982901]
[1761765976218,0.17972681,111280.0,111260.0,0.38801478]
[1761765976418,0.18272681,111280.0,111270.0,0.17974296]
[1761765976625,0.18072681,111280.0,111260.0,0.38801478]
[1761765976829,0.18072681,111280.0,111270.0,0.17974296]
[1761765977089,0.17972681,111280.0,111270.0,0.17974296]
[1761765977333,0.00021754,111280.0,111270.0,0.26011447]
[1761765977530,0.00021754,111280.0,111270.0,0.39783348]
[1761765977531,0.00121754,111280.0,111270.0,0.39783348]
[1761765977948,0.00021754,111280.0,111270.0,0.39783348]
[1761765978605,0.01794754,111280.0,111260.0,0.17975891]
[1761765978812,0.00021754,111280.0,111270.0,0.20975296]
[1761765979031,0.00021754,111280.0,111270.0,0.25765296]
[1761765979244,0.00021754,111280.0,111270.0,0.34747197]
[1761765979457,0.17994435,111280.0,111270.0,0.34747197]
[1761765979667,0.19567435,111280.0,111270.0,0.001]
[1761765979887,0.19767435,111280.0,111270.0,0.001]
[1761765980096,0.55140435,111280.0,111270.0,0.001]
[1761765980301,0.53567435,111280.0,111270.0,0.001]
[1761765980729,0.17974296,111270.0,111250.0,0.28543747]
[1761765980932,0.03858,111270.0,111260.0,0.17975912]
[1761765981156,0.34021754,111280.0,111270.0,0.25942296]
[1761765981365,0.34021754,111280.0,111270.0,0.39714197]
[1761765982008,0.34221754,111280.0,111270.0,0.39714197]
[1761765982212,0.34021754,111280.0,111270.0,0.39714197]
[1761765982423,0.34021754,111280.0,111270.0,0.436189]
[1761765982624,0.34021754,111280.0,111270.0,0.388289]
[1761765982835,0.53567435,111280.0,111270.0,0.07968]
[1761765983050,0.53567435,111280.0,111270.0,0.25942296]
[1761765983300,0.53567435,111280.0,111270.0,0.07968]
[1761765983497,0.35594754,111280.0,111270.0,0.001]
[1761765983705,0.53567435,111280.0,111270.0,0.18074296]
[1761765983917,0.35594754,111280.0,111270.0,0.18074296]
[1761765984126,0.34021754,111280.0,111270.0,0.26042296]
[1761765984343,0.51994435,111280.0,111270.0,0.26042296]
[1761765984597,0.34021754,111280.0,111270.0,0.26042296]
[1761765984802,0.53567435,111280.0,111270.0,0.18074296]
[1761765985030,0.35794754,111280.0,111270.0,0.21075296]
[1761765985242,0.34221754,111280.0,111270.0,0.29947417]
[1761765985454,0.34221754,111280.0,111270.0,0.29847417]
[1761765985684,0.14222095,111280.0,111270.0,0.34637417]
[1761765986102,0.18172681,111280.0,111270.0,0.29847417]
[1761765986316,0.22747762,111290.0,111280.0,0.17972681]
[1761765986525,0.03878,111290.0,111280.0,0.26157376]
[1761765986729,0.21849066,111290.0,111280.0,0.26157376]
[1761765986940,0.23422066,111290.0,111270.0,0.001]
[1761765987155,0.01573,111280.0,111270.0,0.18074247]
[1761765987366,0.20893632,111280.0,111270.0,0.001]
[1761765987586,0.21118681,111280.0,111270.0,0.001]
[1761765987795,0.21118681,111280.0,111270.0,0.18074296]
[1761765988015,0.21849066,111290.0,111280.0,0.17972681]
[1761765988246,0.21849066,111290.0,111270.0,0.34437316]
[1761765988494,0.21849066,111290.0,111280.0,0.17972681]
[1761765988724,0.23422066,111290.0,111280.0,0.17972681]
[1761765988966,0.23422066,111290.0,111270.0,0.31336316]
[1761765989398,0.23622066,111290.0,111270.0,0.31336316]
[1761765989868,0.17972681,111280.0,111270.0,0.31336316]
[1761765990109,0.19545681,111280.0,111250.0,0.23753747]
[1761765990320,0.03858,111270.0,111260.0,0.26957753]
[1761765990777,0.05431,111270.0,111260.0,0.17975852]
[1761765991004,0.03858,111270.0,111260.0,0.20976852]
[1761765991223,0.22049066,111290.0,111270.0,0.17974296]
[1761765991433,0.21849066,111290.0,111270.0,0.3130448]
[1761765991647,0.17972681,111280.0,111270.0,0.3140448]
[1761765992069,0.21849066,111290.0,111270.0,0.25942296]
[1761765992320,0.21870817,111290.0,111270.0,0.25942296]
[1761765992550,0.17972681,111280.0,111270.0,0.25942296]
[1761765992811,0.19545681,111280.0,111270.0,0.07968]
[1761765993030,0.19545681,111280.0,111270.0,0.25942296]
[1761765993669,0.17972681,111280.0,111270.0,0.25942296]
[1761765994111,0.18172681,111280.0,111270.0,0.25942296]
[1761765994327,0.19745681,111280.0,111270.0,0.25942296]
[1761765994533,0.01773,111280.0,111270.0,0.25942296]
[1761765994744,0.18172681,111280.0,111270.0,0.25942296]
[1761765995096,0.002,111280.0,111270.0,0.25942296]
[1761765995739,0.18172681,111280.0,111270.0,0.25942296]
[1761765995912,0.002,111280.0,111270.0,0.25942296]
[1761765996334,0.002,111280.0,111270.0,0.31711301]
[1761765996535,0.002,111280.0,111270.0,0.30732296]
[1761765997143,0.002,111280.0,111270.0,0.25942296]
[1761765997372,0.19745681,111280.0,111260.0,0.26957753]
[1761765997735,0.19745681,111280.0,111270.0,0.17974296]
[1761765998046,0.19545681,111280.0,111270.0,0.18074296]
[1761765998460,0.19545681,111280.0,111270.0,0.17974296]
[1761765998886,0.19745681,111280.0,111270.0,0.17974296]
[1761765999095,0.19545681,111280.0,111270.0,0.26166296]
[1761765999517,0.01573,111280.0,111270.0,0.26166296]
[1761765999720,0.19545681,111280.0,111270.0,0.26166296]
[1761765999959,0.19545681,111280.0,111260.0,0.26957753]
[1761766000166,0.19545681,111280.0,111270.0,0.17974296]
[1761766000369,0.19545681,111280.0,111270.0,0.21203296]
[1761766000595,0.19745681,111280.0,111270.0,0.17974296]
[1761766000931,0.19745681,111280.0,111270.0,0.21203296]
[1761766001131,0.19745681,111280.0,111260.0,0.37409003]
[1761766001363,0.05431,111270.0,111260.0,0.35747003]
[1761766001555,0.03858,111270.0,111260.0,0.35747003]
[1761766001891,0.03858,111270.0,111260.0,0.40638003]
[1761766002098,0.18172681,111280.0,111270.0,0.17974296]
[1761766002303,0.17972681,111280.0,111270.0,0.21203296]
[1761766002511,0.01573,111280.0,111270.0,0.21203296]
[1761766002720,0.2434237,111290.0,111270.0,0.31057296]
[1761766002721,0.2276937,111290.0,111270.0,0.31057296]
[1761766002924,0.17972681,111280.0,111270.0,0.31057296]
[1761766003126,0.19545681,111280.0,111270.0,0.26166296]
[1761766003451,0.17972681,111280.0,111270.0,0.26166296]
[1761766003681,0.17972681,111280.0,111270.0,0.36369701]
[1761766003864,0.2276937,111290.0,111270.0,0.31057296]
[1761766004337,0.17972681,111280.0,111270.0,0.31057296]
[1761766004464,0.17972681,111280.0,111270.0,0.26166296]
[1761766004721,0.18172681,111280.0,111270.0,0.31057296]
[1761766004935,0.19745681,111280.0,111260.0,0.26957753]
[1761766005141,0.03858,111270.0,111260.0,0.32518003]
[1761766005579,0.03858,111270.0,111260.0,0.40638003]
[1761766005990,0.03858,111270.0,111260.0,0.35747003]
[1761766006213,0.17975912,111260.0,111250.0,0.00014432]
[1761766006432,0.19548912,111260.0,111250.0,0.00014432]
[1761766006620,0.19548912,111260.0,111250.0,0.2122096]
[1761766006827,0.19548912,111260.0,111250.0,0.03243432]
[1761766007048,0.19548912,111260.0,111250.0,0.2618396]
[1761766007255,0.19548912,111260.0,111250.0,0.13643666]
[1761766007498,0.19548912,111260.0,111250.0,0.31721194]
[1761766007883,0.19548912,111260.0,111250.0,0.00114432]
[1761766008094,0.17975912,111260.0,111250.0,0.2631196]
[1761766008306,0.19548912,111260.0,111250.0,0.2142096]
[1761766008538,0.17975912,111260.0,111250.0,0.2122096]
[1761766008786,0.17975912,111260.0,111250.0,0.2621196]
[1761766008998,0.17975912,111260.0,111250.0,0.30720694]
[1761766009645,0.19548912,111260.0,111250.0,0.25829694]
[1761766009858,0.17975912,111260.0,111250.0,0.25829694]
[1761766010076,0.19548912,111260.0,111250.0,0.07852166]
[1761766010280,0.21099015,111260.0,111250.0,0.00114432]
[1761766010927,0.21099015,111260.0,111250.0,0.00014432]
[1761766011147,0.67699144,111260.0,111250.0,0.00014432]
[1761766011592,0.67899144,111260.0,111250.0,0.00014432]
[1761766011827,0.17983924,111220.0,111200.0,0.23847872]
[1761766012049,0.23414994,111210.0,111200.0,0.27125016]
[1761766012475,0.21841994,111210.0,111200.0,0.27125016]
[1761766012684,0.23414994,111210.0,111200.0,0.00048144]
[1761766012887,0.23414994,111210.0,111200.0,0.18033755]
[1761766013112,0.23414994,111210.0,111200.0,0.00048144]
[1761766013542,0.24987994,111210.0,111200.0,0.00048144]
[1761766013976,0.24987994,111210.0,111200.0,0.00248144]
[1761766014187,0.24987994,111210.0,111200.0,0.00548144]
[1761766014396,0.23414994,111210.0,111200.0,0.18033755]
[1761766014608,0.05431,111210.0,111200.0,0.22132143]
[1761766014832,0.23614994,111210.0,111200.0,0.22132143]
[1761766015301,0.002,111210.0,111200.0,0.30252143]
[1761766015759,0.002,111210.0,111200.0,0.25361143]
[1761766015979,0.002,111210.0,111200.0,0.30252143]
[1761766016628,0.17983924,111220.0,111210.0,0.17983994]
[1761766016851,0.19556924,111220.0,111200.0,0.27023143]
[1761766017067,0.19556924,111220.0,111200.0,0.22924755]
[1761766017274,0.03858,111210.0,111200.0,0.18033755]
[1761766017481,0.23414994,111210.0,111200.0,0.18133755]
[1761766017899,0.23414994,111210.0,111200.0,0.18033755]
[1761766018312,0.23414994,111210.0,111200.0,0.21262755]
[1761766019563,0.05431,111210.0,111200.0,0.21262755]
[1761766019774,0.23414994,111210.0,111200.0,0.00048144]
[1761766019991,0.24987994,111210.0,111200.0,0.00048144]
[1761766020420,0.24987994,111210.0,111200.0,0.00148144]
[1761766020637,0.72089917,111210.0,111200.0,0.00148144]
[1761766021063,0.72089917,111210.0,111200.0,0.00048144]
[1761766021278,0.72289917,111210.0,111200.0,0.00048144]
[1761766021507,0.81071818,111210.0,111200.0,0.00048144]
[1761766021722,0.80570024,111210.0,111200.0,0.00048144]
[1761766022155,0.58967802,111210.0,111200.0,0.00048144]
[1761766022367,0.67969895,111210.0,111200.0,0.00048144]
[1761766022856,0.71888123,111210.0,111200.0,0.00048144]
[1761766023075,0.17989922,111180.0,111160.0,0.2103445]
[1761766023292,0.05333,111170.0,111160.0,0.21048887]
[1761766023506,0.03809,111170.0,111160.0,0.21048887]
[1761766023719,0.03809,111170.0,111160.0,0.24277887]
[1761766023933,0.05333,111170.0,111160.0,0.21048887]
[1761766024167,0.03809,111170.0,111160.0,0.24477887]
[1761766024589,0.03809,111170.0,111160.0,0.24277887]
[1761766025000,0.03809,111170.0,111160.0,0.24778145]
[1761766025423,0.05333,111170.0,111160.0,0.24778145]
[1761766025636,0.05841879,111170.0,111160.0,0.21549145]
[1761766025848,0.00508879,111170.0,111160.0,0.38651046]
[1761766026064,0.00508879,111170.0,111160.0,0.72151046]
[1761766026495,0.00508879,111170.0,111160.0,0.72551046]
[1761766026707,0.03858,111190.0,111180.0,0.17988846]
[1761766026936,0.55842069,111210.0,111190.0,0.17986312]
[1761766027157,0.01524,111190.0,111180.0,0.17988846]
[1761766027387,0.24718271,111190.0,111160.0,0.21449145]
[1761766027610,0.05333,111170.0,111160.0,0.21249145]
[1761766027861,0.05333,111170.0,111160.0,0.21049145]
[1761766028078,0.07817587,111170.0,111160.0,0.21049145]
[1761766028711,0.08326929,111170.0,111160.0,0.21049145]
[1761766028919,0.08326929,111170.0,111160.0,0.24089145]
[1761766029149,0.04318342,111170.0,111160.0,0.24089145]
[1761766029359,0.05842342,111170.0,111160.0,0.21249145]
[1761766029573,0.05842342,111170.0,111160.0,0.21549145]
[1761766029992,0.00509342,111170.0,111160.0,0.29139145]
[1761766030216,0.33250598,111190.0,111170.0,0.17988975]
[1761766030450,0.00507551,111180.0,111170.0,0.17988975]
[1761766030664,0.01524,111180.0,111170.0,0.17988975]
[1761766031464,0.01524,111180.0,111170.0,0.21028975]
[1761766031720,0.01524,111180.0,111170.0,0.17988975]
[1761766031892,0.19512846,111180.0,111170.0,0.17988975]
[1761766032136,0.01524,111180.0,111170.0,0.17988975]
[1761766033049,0.19512846,111180.0,111170.0,0.18088975]
[1761766033255,0.01524,111180.0,111170.0,0.18188975]
[1761766033876,0.01524,111180.0,111170.0,0.21509975]
[1761766034083,0.21845229,111190.0,111180.0,0.17988846]
[1761766034293,0.27594641,111190.0,111180.0,0.17988846]
[1761766034503,0.09607412,111190.0,111180.0,0.17988846]
[1761766034726,0.27594641,111190.0,111180.0,0.17988846]
[1761766034936,0.05382,111190.0,111180.0,0.21309846]
[1761766035143,0.05382,111190.0,111180.0,0.17988846]
[1761766035359,0.24893229,111190.0,111170.0,0.17988975]
[1761766035569,0.21037217,111180.0,111160.0,0.21049145]
[1761766035782,0.05333,111170.0,111160.0,0.21049145]
[1761766035986,0.05840391,111170.0,111160.0,0.21049145]
[1761766036196,0.04316391,111170.0,111160.0,0.24370145]
[1761766036400,0.04316391,111170.0,111160.0,0.29257145]
[1761766036606,0.04316391,111170.0,111160.0,0.24370145]
[1761766036812,0.0718439,111170.0,111160.0,0.24470145]
[1761766037024,0.0718439,111170.0,111160.0,0.24370145]
[1761766037229,0.0718439,111170.0,111160.0,0.21049145]
[1761766037431,0.0718439,111170.0,111160.0,0.21349145]
[1761766038055,0.00507391,111170.0,111160.0,0.24670145]
[1761766038477,0.00507391,111170.0,111160.0,0.29757145]
[1761766038683,0.2274459,111190.0,111170.0,0.17988933]
[1761766038884,0.00514143,111180.0,111170.0,0.17988933]
[1761766039100,0.02038143,111180.0,111170.0,0.17988933]
[1761766039520,0.20026989,111180.0,111170.0,0.17988933]
[1761766039938,0.21550989,111180.0,111170.0,0.17990465]
[1761766040143,0.26878737,111180.0,111170.0,0.17990465]
[1761766040347,0.20026989,111180.0,111170.0,0.17990465]
[1761766040557,0.21550989,111180.0,111170.0,0.001]
[1761766040763,0.3053289,111180.0,111170.0,0.001]
[1761766040972,0.3053289,111180.0,111170.0,0.18090465]
[1761766041187,0.35860638,111180.0,111170.0,0.001]
[1761766041615,0.35860638,111180.0,111170.0,0.002]
[1761766043115,0.20326989,111180.0,111170.0,0.21311465]
[1761766043329,0.20526989,111180.0,111170.0,0.17990465]
[1761766043550,0.02538143,111180.0,111170.0,0.21311465]
[1761766043763,0.19002989,111180.0,111170.0,0.21311465]
[1761766043973,0.20526989,111180.0,111170.0,0.17990465]
[1761766044193,0.20526989,111180.0,111170.0,0.21311465]
[1761766044406,0.20526989,111180.0,111170.0,0.03321]
[1761766044624,0.26378147,111180.0,111160.0,0.21049078]
[1761766044853,0.05262,111170.0,111160.0,0.21049078]
[1761766045076,0.05789161,111170.0,111160.0,0.21049078]
[1761766045753,0.23779626,111170.0,111160.0,0.21049145]
[1761766045969,0.28541589,111170.0,111160.0,0.21049145]
[1761766046178,0.10551124,111170.0,111160.0,0.21049145]
[1761766046383,0.23779626,111170.0,111160.0,0.21049145]
[1761766046597,0.25303626,111170.0,111160.0,0.21049145]
[1761766046837,0.05789161,111170.0,111160.0,0.21049145]
[1761766047254,0.23779626,111170.0,111160.0,0.21049145]
[1761766047885,0.05789161,111170.0,111160.0,0.21049145]
[1761766048089,0.23779626,111170.0,111160.0,0.21049145]
[1761766048710,0.05789161,111170.0,111160.0,0.24206145]
[1761766049576,0.23779626,111170.0,111160.0,0.21049145]
[1761766050245,0.23779626,111170.0,111160.0,0.24206145]
[1761766050481,0.04265161,111170.0,111160.0,0.28950145]
[1761766050719,0.00527161,111170.0,111160.0,0.28950145]
[1761766051203,0.23779626,111170.0,111160.0,0.06214062]
[1761766051434,0.23779626,111170.0,111160.0,0.21049145]
[1761766051664,0.05789161,111170.0,111160.0,0.24206145]
[1761766051895,0.23779626,111170.0,111160.0,0.21149145]
[1761766052135,0.29632883,111170.0,111160.0,0.21249145]
[1761766052375,0.29632883,111170.0,111160.0,0.03257062]
[1761766052598,0.28108883,111170.0,111160.0,0.03257062]
[1761766052839,0.72614784,111170.0,111160.0,0.03257062]
[1761766053074,0.76233012,111170.0,111160.0,0.03257062]
[1761766053317,0.76233012,111170.0,111160.0,0.03157062]
[1761766053561,0.66761527,111170.0,111160.0,0.03157062]
[1761766053798,0.68285527,111170.0,111160.0,0.03157062]
[1761766054028,0.71903755,111170.0,111160.0,0.03057062]
[1761766055162,0.72603755,111170.0,111160.0,0.03057062]
[1761766055665,0.72903755,111170.0,111160.0,0.03057062]
[1761766055890,0.51160612,111170.0,111160.0,0.03057062]
[1761766056114,0.69151077,111170.0,111160.0,0.03057062]
[1761766056539,0.68351077,111170.0,111160.0,0.03057062]
[1761766056773,0.62896366,111170.0,111160.0,0.03057062]
[1761766057004,0.62696366,111170.0,111160.0,0.03057062]
[1761766057225,0.70784897,111170.0,111160.0,0.03057062]
[1761766057469,0.70884897,111170.0,111160.0,0.03057062]
[1761766058985,0.70884897,111170.0,111160.0,0.06242062]
[1761766058986,0.53814465,111170.0,111160.0,0.06242062]
[1761766059224,0.19814465,111170.0,111160.0,0.24234145]
[1761766059432,0.18290465,111170.0,111160.0,0.24234145]
[1761766059620,0.18290465,111170.0,111160.0,0.29169145]
[1761766060081,0.18290465,111170.0,111160.0,0.06242062]
[1761766060291,0.18290465,111170.0,111160.0,0.24234145]
[1761766060503,0.18290465,111170.0,111160.0,0.03057062]
[1761766060961,0.18290465,111170.0,111160.0,0.29169145]
[1761766060962,0.003,111170.0,111160.0,0.29169145]
[1761766061174,0.003,111170.0,111160.0,1.11469004]
[1761766061816,0.002,111170.0,111160.0,0.72151046]
[1761766062049,0.03858,111190.0,111180.0,0.17988846]
[1761766062264,0.03858,111190.0,111180.0,0.25913846]
[1761766062490,0.18884899,111200.0,111190.0,0.17987229]
[1761766063346,0.18884899,111200.0,111180.0,0.22728846]
[1761766063556,0.18884899,111200.0,111190.0,0.17987229]
[1761766064216,0.17987334,111190.0,111180.0,0.17988846]
[1761766064688,0.22582747,111190.0,111170.0,0.22729016]
[1761766064908,0.17990465,111170.0,111160.0,0.21049145]
[1761766065126,0.21621465,111170.0,111160.0,0.03057062]
[1761766066255,0.21621465,111170.0,111160.0,0.03357062]
[1761766066461,0.30603366,111170.0,111160.0,0.03357062]
[1761766066686,0.35462587,111170.0,111160.0,0.03357062]
[1761766067346,0.30703366,111170.0,111160.0,0.03057062]
[1761766067556,0.21721465,111170.0,111160.0,0.03057062]
[1761766067762,0.21921465,111170.0,111160.0,0.03057062]
[1761766068187,0.21921465,111170.0,111160.0,0.21049145]
[1761766068400,0.21921465,111170.0,111160.0,0.03057062]
[1761766068823,0.25912496,111170.0,111160.0,0.03057062]
[1761766069488,0.25912496,111170.0,111160.0,0.06242062]
[1761766069974,0.21921465,111170.0,111160.0,0.29169145]
[1761766070196,0.21921465,111170.0,111160.0,0.06242062]
[1761766070415,0.03931,111170.0,111160.0,0.24234145]
[1761766070652,0.21921465,111170.0,111160.0,0.29169145]
[1761766070886,0.21921465,111170.0,111160.0,0.24234145]
[1761766071380,0.21921465,111170.0,111160.0,0.29169145]
[1761766071826,0.003,111170.0,111160.0,0.34395519]
[1761766072036,0.003,111170.0,111160.0,0.29169145]
[1761766072510,0.22503127,111200.0,111190.0,0.17986088]
[1761766072511,0.17985611,111200.0,111190.0,0.17986088]
[1761766072746,0.22741268,111210.0,111190.0,0.25911088]
[1761766072957,0.22741268,111210.0,111190.0,0.27661088]
[1761766072958,0.17985611,111200.0,111190.0,0.27661088]
[1761766073174,0.17985611,111200.0,111190.0,0.25911088]
[1761766073391,0.17985611,111200.0,111190.0,0.30846088]
[1761766073610,0.22741268,111210.0,111190.0,0.30846088]
[1761766073822,0.17985611,111200.0,111190.0,0.30846088]
[1761766074046,0.17985611,111200.0,111190.0,0.27661088]
[1761766074260,0.22741268,111210.0,111200.0,0.03185]
[1761766074891,0.22941268,111210.0,111200.0,0.03185]
[1761766075311,0.22741268,111210.0,111200.0,0.03185]
[1761766075525,0.22989344,111210.0,111200.0,0.03185]
[1761766075750,0.17985611,111200.0,111190.0,5e-05]
[1761766076188,0.6458574,111200.0,111190.0,5e-05]
[1761766076391,0.66525312,111200.0,111190.0,5e-05]
[1761766076630,0.66525477,111200.0,111190.0,5e-05]
[1761766077281,0.66525477,111200.0,111190.0,0.00105]
[1761766077490,0.75507378,111200.0,111190.0,0.00105]
[1761766078142,0.75507378,111200.0,111190.0,5e-05]
[1761766078348,0.75707378,111200.0,111190.0,5e-05]
[1761766078586,0.75807378,111200.0,111190.0,5e-05]
[1761766079893,1.00077378,111200.0,111190.0,5e-05]
[1761766080122,0.98137641,111200.0,111190.0,5e-05]
[1761766081010,0.61267512,111200.0,111190.0,5e-05]
[1761766081239,0.27267512,111200.0,111190.0,5e-05]
[1761766081455,0.27167512,111200.0,111190.0,5e-05]
[1761766081680,0.60967512,111200.0,111190.0,5e-05]
[1761766081906,0.51985611,111200.0,111190.0,5e-05]
[1761766082119,0.52085611,111200.0,111190.0,0.0793]
[1761766082335,0.52085611,111200.0,111190.0,5e-05]
[1761766082755,0.52185611,111200.0,111190.0,0.0319]
[1761766082968,0.18185611,111200.0,111190.0,0.24262597]
[1761766083202,0.17985611,111200.0,111190.0,0.29197597]
[1761766083410,0.22789344,111210.0,111190.0,0.29297597]
[1761766083623,0.22789344,111210.0,111200.0,0.03185]
[1761766083888,0.18931344,111210.0,111200.0,0.03185]
[1761766084102,0.18931344,111210.0,111200.0,1.01859829]
[1761766084103,0.00048076,111210.0,111200.0,1.01859829]
[1761766084320,0.00048076,111210.0,111200.0,0.28541871]
[1761766084571,0.17985611,111200.0,111190.0,0.00105]
[1761766084797,0.26967512,111200.0,111190.0,5e-05]
[1761766086544,0.6478574,111200.0,111190.0,5e-05]
[1761766086750,0.6488574,111200.0,111190.0,5e-05]
[1761766086966,0.73554821,111200.0,111190.0,5e-05]
[1761766088048,0.61267512,111200.0,111190.0,5e-05]
[1761766090422,0.52285611,111200.0,111190.0,5e-05]
[1761766091938,0.18285611,111200.0,111190.0,0.21086229]
[1761766092391,0.18285611,111200.0,111190.0,0.25590229]
[1761766092624,0.18285611,111200.0,111190.0,5e-05]
[1761766092843,0.17985611,111200.0,111190.0,5e-05]
[1761766093052,0.17985611,111200.0,111190.0,0.25632944]
[1761766093495,0.17985611,111200.0,111190.0,0.21124944]
[1761766093638,0.17985611,111200.0,111190.0,0.21224944]
[1761766093846,0.17985611,111200.0,111190.0,0.25976313]
[1761766094053,0.17985611,111200.0,111190.0,0.30868313]
[1761766094259,0.18085611,111200.0,111190.0,0.17992229]
[1761766094469,0.18085611,111200.0,111190.0,0.21125229]
[1761766094850,0.18185611,111200.0,111190.0,5e-05]
[1761766095470,0.17985611,111200.0,111190.0,5e-05]
[1761766095703,0.17985611,111200.0,111190.0,0.00305]
[1761766095933,0.6494658,111200.0,111190.0,0.00305]
[1761766096153,0.68564808,111200.0,111190.0,0.00205]
[1761766096578,0.68664808,111200.0,111190.0,5e-05]
[1761766096988,0.68764808,111200.0,111190.0,5e-05]
[1761766097204,0.68664808,111200.0,111190.0,5e-05]
[1761766097420,0.69664807,111200.0,111190.0,5e-05]
[1761766097662,0.70064807,111200.0,111190.0,5e-05]
[1761766097869,0.69964807,111200.0,111190.0,5e-05]
[1761766098286,0.72005184,111200.0,111190.0,5e-05]
[1761766098506,0.73005183,111200.0,111190.0,5e-05]
[1761766098720,0.71505184,111200.0,111190.0,5e-05]
[1761766098965,0.71805184,111200.0,111190.0,5e-05]
[1761766099178,0.72205184,111200.0,111190.0,5e-05]
[1761766099422,0.6488574,111200.0,111190.0,5e-05]
[1761766099632,0.6518574,111200.0,111190.0,5e-05]
[1761766099844,0.6558574,111200.0,111190.0,5e-05]
[1761766100302,0.6598574,111200.0,111190.0,5e-05]
[1761766100535,0.6498574,111200.0,111190.0,5e-05]
[1761766100971,0.73364821,111200.0,111190.0,5e-05]
[1761766101176,0.69746593,111200.0,111190.0,5e-05]
[1761766101596,0.69846593,111200.0,111190.0,5e-05]
[1761766102035,0.61067512,111200.0,111190.0,5e-05]
[1761766103199,0.6468574,111200.0,111190.0,5e-05]
[1761766108300,0.61067512,111200.0,111190.0,5e-05]
[1761766108928,0.6468574,111200.0,111190.0,5e-05]
[1761766109413,0.67627189,111200.0,111190.0,5e-05]
[1761766109614,0.77609089,111200.0,111190.0,5e-05]
[1761766113202,0.7660909,111200.0,111190.0,5e-05]
[1761766113423,0.77609089,111200.0,111190.0,5e-05]
[1761766114017,0.70049413,111200.0,111190.0,5e-05]
[1761766114502,0.73667641,111200.0,111190.0,5e-05]
[1761766115850,0.7466764,111200.0,111190.0,5e-05]
[1761766116747,0.70049413,111200.0,111190.0,5e-05]
[1761766116968,0.73667641,111200.0,111190.0,5e-05]
[1761766117629,0.70049413,111200.0,111190.0,5e-05]
[1761766117853,0.61067512,111200.0,111190.0,5e-05]
[1761766118069,0.6468574,111200.0,111190.0,5e-05]
[1761766118720,0.65235809,111200.0,111190.0,5e-05]
[1761766119604,0.1863568,111200.0,111190.0,5e-05]
[1761766119828,0.27617581,111200.0,111190.0,5e-05]
[1761766120054,0.61617581,111200.0,111190.0,5e-05]
[1761766120728,0.61517581,111200.0,111190.0,5e-05]
[1761766120945,0.61517581,111200.0,111190.0,0.00105]
[1761766121166,0.61617581,111200.0,111190.0,0.00105]
[1761766121406,0.65524074,111200.0,111190.0,0.00105]
[1761766121868,0.61617581,111200.0,111190.0,0.00105]
[1761766122982,0.61617581,111200.0,111190.0,0.03372]
[1761766123206,0.61617581,111200.0,111190.0,0.00105]
[1761766123421,0.61617581,111200.0,111190.0,0.03372]
[1761766123422,0.1863568,111200.0,111190.0,0.03372]
[1761766123645,0.1863568,111200.0,111190.0,0.30598229]
[1761766124316,0.1863568,111200.0,111190.0,0.12611]
[1761766124766,0.1863568,111200.0,111190.0,0.00105]
[1761766125013,0.22679755,111200.0,111190.0,0.00105]
[1761766125224,0.1863568,111200.0,111190.0,0.00105]
[1761766125442,0.1863568,111200.0,111190.0,0.21359229]
[1761766126115,0.1863568,111200.0,111190.0,0.08205]
[1761766126573,0.00650069,111200.0,111190.0,0.08205]
[1761766126777,0.1863568,111200.0,111190.0,0.00105]
[1761766127892,0.27617581,111200.0,111190.0,0.00105]
[1761766128116,0.67177477,111200.0,111190.0,0.00105]
[1761766130777,0.61617581,111200.0,111190.0,0.00105]
[1761766131197,0.5263568,111200.0,111190.0,0.00105]
[1761766132484,0.61617581,111200.0,111190.0,0.00105]
[1761766132690,0.69959846,111200.0,111190.0,0.00105]
[1761766134206,0.75520112,111200.0,111190.0,0.00105]
[1761766134431,0.73578074,111200.0,111190.0,0.00105]
[1761766135070,0.5148618,111200.0,111190.0,0.00105]
[1761766135492,0.60468081,111200.0,111190.0,0.00105]
[1761766136787,0.5148618,111200.0,111190.0,0.00105]
[1761766139051,0.60468081,111200.0,111190.0,0.00105]
[1761766139939,0.5148618,111200.0,111190.0,0.00105]
[1761766140413,0.677429,111200.0,111190.0,0.00105]
[1761766140657,0.71361128,111200.0,111190.0,0.00105]
[1761766142467,0.71361128,111200.0,111190.0,1e-08]
[1761766142925,0.75890817,111200.0,111190.0,1e-08]
[1761766143345,0.21608693,111170.0,111160.0,0.03042625]
[1761766143553,0.29964366,111170.0,111160.0,0.03042625]
[1761766144614,0.29964366,111170.0,111160.0,0.03057062]
[1761766144877,0.21082465,111170.0,111160.0,0.03057062]
[1761766145090,0.30064366,111170.0,111160.0,0.03057062]
[1761766145517,0.29964366,111170.0,111160.0,0.03057062]
[1761766145736,0.21082465,111170.0,111160.0,0.06324062]
[1761766145920,0.20982465,111170.0,111160.0,0.06324062]